fUST/lending_fUST_20251116
["ID","MTS","AMOUNT","RATE_DAILY","PERIOD"]
[394105965,1763286640906,-300.0,0.00017913,2]
[394105966,1763286640915,-300.0,0.00017913,2]
[394105967,1763286640924,-300.0,0.00017913,2]
[394105968,1763286640934,-300.0,0.00017913,2]
[394105969,1763286640944,-300.0,0.00017913,2]
[394105970,1763286640953,-300.0,0.00017913,2]
[394105971,1763286640962,-300.0,0.00017913,2]
[394105972,1763286640972,-300.0,0.00017913,2]
[394105973,1763286640981,-300.0,0.00017913,2]
[394105974,1763286640991,-300.0,0.00017913,2]
[394105975,1763286641000,-300.0,0.00017913,2]
[394105976,1763286641010,-300.0,0.00017913,2]
[394105977,1763286641020,-300.0,0.00017913,2]
[394105978,1763286641029,-300.0,0.00017913,2]
[394105979,1763286641040,-300.0,0.00017913,2]
[394105980,1763286641049,-600.0,0.00017913,2]
[394105981,1763286641059,-401.80840313,0.00017973,2]
[394105982,1763286641068,-500.0,0.00018067,2]
[394105983,1763286641078,-500.0,0.00018067,2]
[394105984,1763286641087,-502.36816873,0.00018067,2]
[394105985,1763286641096,-1013.36517102,0.00018068,2]
[394105986,1763286641106,-1500.0,0.00018068,2]
[394105987,1763286641115,-846.26115877,0.00018068,2]
[394105988,1763286641124,-504.90807221,0.000181,2]
[394105989,1763286641133,-2067.22861848,0.00018112,2]
[394105990,1763286641143,-552.98968313,0.00018131,2]
[394105991,1763286641153,-295.1651733,0.00018146,2]
[394105992,1763286641162,-343.0,0.00018276,2]
[394105993,1763286641172,-587.0,0.00018298,2]
[394105994,1763286641181,-649.74210645,0.00018302,2]
[394105995,1763286641191,-460.0,0.00018305,2]
[394105996,1763286641205,-367.20760578,0.00018325,2]
[394105997,1763286641214,-531.29731194,0.0001833,2]
[394105998,1763286641223,-326.8096674,0.00018354,2]
[394105999,1763286641234,-800.0,0.00018396,2]
[394106000,1763286641244,-3000.0,0.00018412,2]
[394106001,1763286641253,-2000.0,0.00018444,2]
[394106002,1763286641262,-800.0,0.00018449,2]
[394106003,1763286641272,-800.0,0.00018451,2]
[394106004,1763286641282,-1169.53579161,0.00018491,2]
[394106005,1763286641293,-1000.0,0.000185,2]
[394106006,1763286641302,-800.0,0.00018502,2]
[394106007,1763286641311,-419.66583517,0.00018506,2]
[394106008,1763286641321,-944.52855456,0.00018515,2]
[394106009,1763286641331,-800.0,0.00018542,2]
[394106010,1763286641341,-500.0,0.00018587,2]
[394106011,1763286641352,-800.0,0.00018599,2]
[394106012,1763286641362,-258.66219724,0.00018603,2]
[394106013,1763286641372,-800.0,0.00018605,2]
[394106014,1763286641382,-1000.0,0.00018615,2]
[394106015,1763286641392,-1000.0,0.00018615,2]
[394106016,1763286641403,-1412.7007798,0.00018616,2]
[394106017,1763286641414,-2079.17474064,0.00018679,2]
[394106018,1763286641425,-800.0,0.000187,2]
[394106019,1763286641436,-163.74908722,0.00018703,2]
[394106020,1763286641448,-357.40615159,0.00018736,7]
[394106021,1763286641460,-193.31,0.00018797,2]
[394106022,1763286641471,-560.0,0.00018852,2]
[394106023,1763286641482,-505.87958196,0.00018857,2]
[394106024,1763286641496,-500.0,0.00018857,2]
[394106025,1763286641507,-500.0,0.00018857,2]
[394106026,1763286641517,-500.0,0.00018857,2]
[394106027,1763286641528,-500.0,0.00018927,2]
[394106028,1763286641548,-500.0,0.00018927,2]
[394106029,1763286641559,-500.0,0.00018927,2]
[394106030,1763286641569,-500.0,0.00018927,2]
[394106031,1763286641580,-3500.0,0.0001896,2]
[394106032,1763286641590,-2500.0,0.00018992,2]
[394106033,1763286641601,-1000.000001,0.00019,2]
[394106034,1763286641611,-1437.39910531,0.00019062,2]
[394106035,1763286641620,-1000.0,0.00019135,2]
[394106036,1763286641630,-1064.98834859,0.00019163,2]
[394106037,1763286641640,-511.56600794,0.00019163,2]
[394106038,1763286641650,-200.76960998,0.00019177,2]
[394106039,1763286641660,-5000.0,0.00019178,2]
[394106040,1763286641669,-1876.14723213,0.00019178,2]
[394106041,1763286641679,-452.708428,0.00019178,2]
[394106042,1763286641688,-452.708428,0.00019178,2]
[394106043,1763286641698,-452.708428,0.00019178,2]
[394106044,1763286641708,-452.708428,0.00019178,2]
[394106045,1763286641718,-452.708428,0.00019178,2]
[394106046,1763286641728,-452.708428,0.00019178,2]
[394106047,1763286641738,-452.708428,0.00019178,2]
[394106048,1763286641747,-452.708428,0.00019178,2]
[394106049,1763286641756,-452.708428,0.00019178,2]
[394106050,1763286641765,-452.708428,0.00019178,2]
[394106051,1763286641775,-452.708428,0.00019178,2]
[394106052,1763286641788,-452.708428,0.00019178,2]
[394106053,1763286641798,-452.708428,0.00019178,2]
[394106054,1763286641808,-452.708428,0.00019178,2]
[394106055,1763286641817,-452.708428,0.00019178,2]
[394106056,1763286641827,-452.708428,0.00019178,2]
[394106057,1763286641836,-452.708428,0.00019178,2]
[394106058,1763286641846,-452.708428,0.00019178,2]
[394106059,1763286641855,-452.708428,0.00019178,2]
[394106060,1763286641864,-452.708437,0.00019178,2]
[394106061,1763286641873,-150.0,0.00019178,2]
[394106062,1763286641883,-3099.38742233,0.00019205,5]
[394106063,1763286641892,-500.0,0.00019298,2]
[394106064,1763286641901,-300.0,0.00019315,2]
[394106065,1763286641911,-660.0,0.000194,2]
[394106066,1763286641920,-1000.0,0.00019405,2]
[394106067,1763286641930,-1009.21781963,0.00019405,2]
[394106068,1763286641940,-1000.0,0.00019405,2]
[394106069,1763286641950,-151.79765954,0.00019452,2]
[394106070,1763286641959,-1000.0,0.00019475,2]
[394106071,1763286641968,-428.07354038,0.00019475,2]
[394106072,1763286641978,-511.67678116,0.00019475,2]
[394106073,1763286642061,-868.73215715,0.00019475,2]
[394106074,1763286642070,-153.183526,0.00019487,3]
[394106075,1763286642080,-1003.914156,0.000195,2]
[394106076,1763286642090,-4000.0,0.00019508,2]
[394106077,1763286642100,-3000.0,0.0001954,2]
[394106078,1763286642109,-634.88921509,0.00019598,7]
[394106079,1763286642118,-161.289597,0.00019609,5]
[394106080,1763286642127,-684.0,0.00019664,2]
[394106081,1763286642136,-600.0,0.0001968,2]
[394106082,1763286642146,-153.183526,0.0001968,10]
[394106083,1763286642155,-762.76259935,0.00019683,2]
[394106084,1763286642164,-161.289597,0.00019695,7]
[394106085,1763286642173,-720.0,0.00019705,2]
[394106086,1763286642182,-629.0,0.00019708,2]
[394106087,1763286642192,-2149.0,0.00019708,2]
[394106088,1763286642202,-988.0,0.00019708,2]
[394106089,1763286642211,-413.0,0.00019708,2]
[394106090,1763286642220,-11803.02434687,0.00019738,2]
[394106091,1763286642230,-1000.0,0.0001978,2]
[394106092,1763286642240,-6327.89669267,0.00019796,2]
[394106093,1763286642250,-600.0,0.00019885,2]
[394106094,1763286642260,-153.183526,0.0001989,3]
[394106095,1763286642270,-760.0,0.00019948,2]
[394106096,1763286642281,-1500.0,0.00019953,2]
[394106097,1763286642295,-331.14679292,0.00019953,2]
[394106098,1763286642305,-153.83051613,0.00019973,2]
[394106099,1763286642314,-200.54727593,0.00019973,2]
[394106100,1763286642324,-624.0,0.0002,2]
[394106101,1763286642333,-204.06743734,0.0002,2]
[394106102,1763286642343,-159.3,0.0002,2]
[394106103,1763286642353,-15442.58553187,0.0002,2]
[394106104,1763286642797,-3e-08,0.0002,2]
[394106115,1763286644382,-151.0,0.00015501,2]
[394106116,1763286644392,-151.0,0.00015501,2]
[394106117,1763286644401,-6833.2482068,0.0002,2]
[394106118,1763286644412,-7646.28351419,0.0002,2]
[394106121,1763286646565,-164.909792,0.00015501,2]
[394106122,1763286646575,-751.78894601,0.0002,2]
[394106123,1763286646619,-2897.6052618,0.0002,2]
[394106124,1763286646630,-6459.05160098,0.0002,2]
[394106125,1763286646640,-1027.53898189,0.0002,2]
[394106126,1763286646649,-547.60049205,0.0002,2]
[394106127,1763286646659,-250.0,0.0002,10]
[394106128,1763286646668,-150.0,0.0002,2]
[394106129,1763286646677,-2000.0,0.0002,7]
[394106130,1763286646686,-823.0,0.0002002,2]
[394106131,1763286646695,-1500.0,0.00020023,2]
[394106132,1763286646704,-1708.2317495,0.00020037,2]
[394106133,1763286646714,-4500.0,0.00020056,2]
[394106134,1763286646723,-3500.0,0.00020088,2]
[394106135,1763286646732,-153.183526,0.0002009,10]
[394106136,1763286646741,-600.0,0.0002009,2]
[394106137,1763286646750,-491.526886,0.000201,10]
[394106138,1763286646759,-5000.0,0.00020101,2]
[394106139,1763286646768,-775.981272,0.00020187,2]
[394106140,1763286646777,-150.0,0.00020241,2]
[394106141,1763286646786,-150.0,0.00020241,2]
[394106142,1763286646796,-150.0,0.00020241,2]
[394106143,1763286646805,-150.0,0.00020241,2]
[394106144,1763286646814,-150.0,0.00020241,2]
[394106145,1763286646824,-600.0,0.00020295,2]
[394106146,1763286646833,-193.30443987,0.00020398,2]
[394106147,1763286646842,-860.0,0.00020496,2]
[394106148,1763286646851,-2818.43,0.000205,10]
[394106149,1763286646860,-161.289597,0.000205,10]
[394106150,1763286646869,-600.0,0.000205,2]
[394106151,1763286646878,-1518.00502542,0.00020501,2]
[394106152,1763286646887,-2000.0,0.00020571,2]
[394106153,1763286646896,-292.89689981,0.00020603,2]
[394106154,1763286646906,-5000.0,0.00020604,2]
[394106155,1763286646915,-493.25839247,0.00020636,2]
[394106156,1763286646924,-197.3782725,0.00020649,7]
[394106157,1763286646933,-444.2330035,0.00020649,7]
[394106158,1763286646942,-600.0,0.00020705,2]
[394106159,1763286646951,-1437.39910531,0.00020749,2]
[394106160,1763286646961,-600.0,0.0002091,2]
[394106161,1763286646970,-2857.45559419,0.00020922,2]
[394106162,1763286692428,153.183527,0.00017904,3]
[394106163,1763286693603,153.183527,0.00017762,5]
[394106164,1763286847643,-459.21795552,0.00014931,2]
[394106165,1763286849348,-171.07384557,0.00014931,2]
[394106166,1763286852024,-168.53106346,0.00014931,2]
[394106167,1763286854614,-360.40476396,0.00014782,2]
[394106168,1763286856923,-246.63315987,0.00014782,2]
[394106169,1763286859067,-618.62110981,0.00014782,2]
[394106170,1763286861848,-108.86472462,0.00014782,2]
[394106171,1763286861870,-391.13527538,0.00014931,2]
[394106172,1763286877559,-774.85741942,0.00014782,2]
[394106173,1763286877582,-530.25148939,0.00014931,2]
[394106174,1763286893019,-244.60593003,0.00014931,2]
[394106175,1763286893040,-94.40472634,0.00014982,2]
[394106176,1763286923087,-206.48039651,0.00014684,2]
[394106177,1763286923110,-93.51960349,0.00014832,2]
[394106179,1763286924639,-112.96079302,0.00014832,2]
[394106180,1763286924661,-206.48039651,0.00014982,2]
[394106181,1763286924682,-27.27556909,0.00014982,2]
[394106183,1763286952538,-184.64882398,0.00014362,2]
[394106184,1763286954728,-499.43039238,0.00014362,2]
[394106185,1763286957431,3852.45759704,0.00014218,2]
[394106186,1763286958117,-205.00930454,0.00014362,2]
[394106188,1763286959848,-181.88495492,0.00014362,2]
[394106189,1763286963330,-175.58133288,0.00014362,2]
[394106190,1763286965569,-432.71403423,0.00014362,2]
[394106191,1763286965792,3465.56333758,0.00014218,2]
[394106192,1763286970609,-354.12447182,0.00014362,2]
[394106193,1763286972494,-413.16149395,0.00014362,2]
[394106194,1763286974273,-175.53106346,0.00014362,2]
[394106195,1763286975997,-299.17924576,0.00014362,2]
[394106196,1763286979241,-236.96592044,0.00014362,2]
[394106197,1763286980921,1615.27169548,0.00014218,2]
[394106198,1763286981022,-622.77744099,0.00014362,2]
[394106199,1763286985916,-325.19871181,0.00014362,2]
[394106200,1763286988002,-230.83675562,0.00014362,2]
[394106201,1763286988677,755.52833405,0.00014218,2]
[394106202,1763287003847,199.49286662,0.00014218,2]
[394106203,1763287011627,199.49286662,0.00014218,2]
[394106204,1763287026736,199.49286662,0.00014218,2]
[394106205,1763287035077,199.49286662,0.00014218,2]
[394106206,1763287050744,199.49286662,0.00014218,2]
[394106207,1763287058555,199.49286662,0.00014218,2]
[394106208,1763287073816,199.49286662,0.00014218,2]
[394106209,1763287082161,199.49286662,0.00014218,2]
[394106210,1763287097311,199.49286662,0.00014218,2]
[394106211,1763287105718,199.49286662,0.00014218,2]
[394106212,1763287122385,199.49286662,0.00014218,2]
[394106213,1763287130283,199.49286662,0.00014218,2]
[394106214,1763287146000,199.49286662,0.00014218,2]
[394106215,1763287153736,199.49286662,0.00014218,2]
[394106216,1763287163210,-199.49286662,0.00014362,2]
[394106217,1763287163233,-174.85304809,0.00014672,2]
[394106218,1763287163256,-62.96609102,0.00014982,2]
[394106219,1763287201566,3648.29898522,0.00013274,2]
[394106220,1763287201895,3648.29898522,0.00013432,2]
[394106221,1763287202218,3648.29898522,0.00013823,2]
[394106222,1763287202515,3648.29898522,0.00014146,2]
[394106223,1763287208722,-309.25350006,0.00014323,2]
[394106224,1763287211287,-235.11845016,0.00014323,2]
[394106225,1763287214208,-254.4734089,0.00014323,2]
[394106226,1763287214832,3339.04548516,0.0001418,2]
[394106227,1763287215889,-310.41833647,0.00014323,2]
[394106228,1763287217798,-417.47082903,0.00014323,2]
[394106229,1763287220243,-183.07059923,0.00014323,2]
[394106230,1763287222704,1938.49386137,0.0001418,2]
[394106231,1763287223096,-382.90734105,0.00014323,2]
[394106232,1763287224739,-316.92940077,0.00014323,2]
[394106233,1763287226830,-263.03407956,0.00014323,2]
[394106234,1763287230269,-187.72167892,0.00014323,2]
[394106235,1763287232824,-157.78090845,0.00014323,2]
[394106236,1763287235557,-248.57440847,0.00014323,2]
[394106237,1763287237905,381.54604415,0.0001418,2]
[394106238,1763287240387,-381.54604415,0.00014323,2]
[394106239,1763287240408,-77.79072282,0.00014623,2]
[394106240,1763287243116,-180.88755053,0.00014623,2]
[394106241,1763287245268,-223.02672876,0.00014623,2]
[394106242,1763287247895,-233.91871196,0.00014477,2]
[394106243,1763287250359,-276.97327124,0.00014477,2]
[394106244,1763287255886,-342.21909155,0.00014477,2]
[394106245,1763287258270,-500.0,0.00014477,2]
[394106246,1763287260416,-500.0,0.00014477,2]
[394106247,1763287261783,153.0,5e-05,2]
[394106248,1763287262079,153.0,5.2e-05,2]
[394106249,1763287262142,-469.56801186,0.00014332,2]
[394106250,1763287262373,153.0,5.4e-05,2]
[394106251,1763287262677,153.0,5.7e-05,2]
[394106252,1763287263080,153.0,5.9e-05,2]
[394106253,1763287263368,153.0,6.1e-05,2]
[394106254,1763287263667,153.0,6.3e-05,2]
[394106255,1763287263983,153.0,6.5e-05,2]
[394106256,1763287264278,153.0,6.8e-05,2]
[394106257,1763287264306,-154.12273928,0.00014332,2]
[394106258,1763287264556,153.0,7e-05,2]
[394106259,1763287264872,153.0,7.2e-05,2]
[394106260,1763287265318,153.0,7.4e-05,2]
[394106261,1763287265539,153.0,7.6e-05,2]
[394106262,1763287265839,153.0,7.8e-05,2]
[394106263,1763287265919,-346.00455796,0.00014332,2]
[394106264,1763287266147,153.0,8.1e-05,2]
[394106265,1763287266426,153.0,8.3e-05,2]
[394106266,1763287266787,153.0,8.5e-05,2]
[394106267,1763287267083,153.0,8.7e-05,2]
[394106268,1763287267364,153.0,8.9e-05,2]
[394106269,1763287268333,153.0,9.2e-05,2]
[394106270,1763287268666,153.0,9.4e-05,2]
[394106271,1763287268839,-166.40550484,0.00014332,2]
[394106272,1763287268961,153.0,9.6e-05,2]
[394106273,1763287269262,153.0,9.8e-05,2]
[394106274,1763287269553,153.0,0.0001,2]
[394106275,1763287269925,153.0,0.000103,2]
[394106276,1763287270267,153.0,0.000105,2]
[394106277,1763287270492,-206.72474021,0.00014332,2]
[394106278,1763287270567,153.0,0.000107,2]
[394106279,1763287270871,153.0,0.000109,2]
[394106280,1763287271153,153.0,0.000111,2]
[394106281,1763287271432,153.0,0.000113,2]
[394106282,1763287271905,153.0,0.000116,2]
[394106283,1763287272287,153.0,0.000118,2]
[394106284,1763287272574,153.0,0.00012,2]
[394106285,1763287273018,-166.87460121,0.00014332,2]
[394106286,1763287274840,-272.62481421,0.00014332,2]
[394106287,1763287277257,-178.18563153,0.00014332,2]
[394106288,1763287279443,-75.99903602,0.00014332,2]
[394106289,1763287279464,-189.34206635,0.00014477,2]
[394106290,1763287281305,-382.96167021,0.00014477,2]
[394106291,1763287284564,-160.12989531,0.00014332,2]
[394106292,1763287287254,-205.46557006,0.00014332,2]
[394106293,1763287288842,-245.23718289,0.00014332,2]
[394106294,1763287293703,-217.62386043,0.00014332,2]
[394106295,1763287302594,-135.74939187,0.00014332,2]
[394106296,1763287302617,-339.35242864,0.00014477,2]
[394106307,1763287313687,-160.43527447,0.00014332,2]
[394106308,1763287320726,346.49983284,0.00014189,2]
[394106309,1763287322546,6509.6212654,0.00014108,2]
[394106310,1763287343666,-161.45121328,0.00014332,2]
[394106311,1763287345402,-208.36124201,0.00014332,2]
[394106312,1763287347688,-94.60574216,0.00014332,2]
[394106313,1763287347710,-411.01630167,0.00014477,2]
[394106314,1763287372614,-178.47434018,0.00014332,2]
[394106315,1763287585235,-228.0356158,0.00014375,2]
[394106317,1763287740561,150.0,0.00032875,120]
[394106318,1763287814197,4872.9969625,0.00014021,2]
[394106411,1763287833595,-1000.0,0.0001442,2]
[394106427,1763287838619,-524.87469203,0.0001442,2]
[394106428,1763287838673,-73.80286584,0.0001442,2]
[394106429,1763287838683,-212.19713416,0.0001452,2]
[394106448,1763287840594,-987.80286584,0.0001452,2]
[394106449,1763287840603,-300.0,0.0001452,2]
[394106450,1763287840612,-300.0,0.0001452,2]
[394106451,1763287840621,-300.0,0.0001452,2]
[394106452,1763287840630,-300.0,0.0001452,2]
[394106453,1763287840639,-1200.0,0.0001452,2]
[394106454,1763287840648,-175.46529853,0.0001452,2]
[394106455,1763287840657,-343.80270455,0.00014521,2]
[394106522,1763287841326,-3e-08,0.00014521,2]
[394106546,1763287842544,-3914.00798405,0.00014521,2]
[394106547,1763287842556,-451.59621594,0.00014521,2]
[394106552,1763287843787,-3092.7103877,0.00014521,2]
[394106553,1763287843798,-2998.41259666,0.00014521,2]
[394106558,1763287845037,-8.54954531,0.00014521,2]
[394106559,1763287845049,-1849.64582596,0.00014521,2]
[394106560,1763287845059,-3627.35528948,0.00014764,2]
[394106561,1763287845068,-3627.35528948,0.00015054,2]
[394106562,1763287845078,-197.817674,0.00015068,2]
[394106563,1763287845087,-366.13800148,0.00015082,2]
[394106564,1763287845097,-500.0,0.00015173,2]
[394106565,1763287845106,-500.0,0.00015173,2]
[394106566,1763287845116,-500.0,0.00015173,2]
[394106567,1763287845126,-500.0,0.00015173,2]
[394106568,1763287845135,-500.0,0.00015173,2]
[394106569,1763287845148,-500.0,0.00015173,2]
[394106570,1763287845158,-500.0,0.00015173,2]
[394106571,1763287845168,-233.91871196,0.00015173,2]
[394106572,1763287845178,-591.49692446,0.00015173,2]
[394106573,1763287845188,-500.0,0.00015173,2]
[394106574,1763287845197,-500.0,0.00015173,2]
[394106575,1763287845207,-500.0,0.00015173,2]
[394106576,1763287845216,-500.0,0.00015173,2]
[394106577,1763287845226,-500.0,0.00015173,2]
[394106578,1763287845237,-500.0,0.00015173,2]
[394106579,1763287845246,-500.0,0.00015173,2]
[394106580,1763287845255,-500.0,0.00015173,2]
[394106581,1763287845265,-500.0,0.00015173,2]
[394106582,1763287845274,-500.0,0.00015173,2]
[394106583,1763287845283,-500.0,0.00015173,2]
[394106584,1763287845294,-500.0,0.00015173,2]
[394106585,1763287845303,-500.0,0.00015173,2]
[394106586,1763287845313,-500.0,0.00015173,2]
[394106587,1763287845322,-500.0,0.00015173,2]
[394106588,1763287845332,-500.0,0.00015173,2]
[394106589,1763287845341,-500.0,0.00015173,2]
[394106590,1763287845350,-500.0,0.00015173,2]
[394106591,1763287845359,-500.0,0.00015173,2]
[394106592,1763287845368,-365.82946774,0.00015173,2]
[394106593,1763287845378,-500.0,0.00015173,2]
[394106594,1763287845387,-500.0,0.00015173,2]
[394106595,1763287845395,-500.0,0.00015173,2]
[394106596,1763287845404,-500.0,0.00015173,2]
[394106597,1763287845414,-500.0,0.00015173,2]
[394106598,1763287845423,-500.0,0.00015173,2]
[394106599,1763287845432,-500.0,0.00015173,2]
[394106600,1763287845442,-500.0,0.00015173,2]
[394106601,1763287845451,-500.0,0.00015173,2]
[394106602,1763287845461,-500.0,0.00015173,2]
[394106603,1763287845471,-500.0,0.00015173,2]
[394106604,1763287845480,-500.0,0.00015173,2]
[394106605,1763287845489,-500.0,0.00015173,2]
[394106606,1763287845498,-500.0,0.00015173,2]
[394106607,1763287845507,-500.0,0.00015173,2]
[394106608,1763287845517,-500.0,0.00015173,2]
[394106609,1763287845526,-500.0,0.00015173,2]
[394106610,1763287845535,-500.0,0.00015173,2]
[394106611,1763287845544,-500.0,0.00015173,2]
[394106612,1763287845553,-500.0,0.00015173,2]
[394106613,1763287845564,-500.0,0.00015173,2]
[394106614,1763287845574,-500.0,0.00015173,2]
[394106615,1763287845583,-500.0,0.00015173,2]
[394106616,1763287845593,-500.0,0.00015173,2]
[394106617,1763287845603,-500.0,0.00015173,2]
[394106618,1763287845612,-500.0,0.00015173,2]
[394106619,1763287845621,-500.0,0.00015173,2]
[394106620,1763287845630,-500.0,0.00015173,2]
[394106621,1763287845639,-500.0,0.00015173,2]
[394106622,1763287845649,-500.0,0.00015173,2]
[394106623,1763287845659,-500.0,0.00015173,2]
[394106624,1763287845668,-500.0,0.00015173,2]
[394106625,1763287845678,-500.0,0.00015173,2]
[394106626,1763287845687,-500.0,0.00015173,2]
[394106627,1763287845697,-500.0,0.00015173,2]
[394106628,1763287845710,-500.0,0.00015173,2]
[394106629,1763287845719,-500.0,0.00015173,2]
[394106630,1763287845729,-500.0,0.00015173,2]
[394106631,1763287845738,-500.0,0.00015173,2]
[394106632,1763287845748,-500.0,0.00015173,2]
[394106633,1763287845757,-500.0,0.00015173,2]
[394106634,1763287845766,-500.0,0.00015173,2]
[394106635,1763287845777,-500.0,0.00015173,2]
[394106636,1763287845786,-500.0,0.00015173,2]
[394106637,1763287845796,-500.0,0.00015173,2]
[394106638,1763287845805,-500.0,0.00015173,2]
[394106639,1763287845816,-500.0,0.00015173,2]
[394106640,1763287845825,-500.0,0.00015173,2]
[394106641,1763287845834,-500.0,0.00015173,2]
[394106642,1763287845844,-500.0,0.00015173,2]
[394106643,1763287845854,-500.0,0.00015173,2]
[394106644,1763287845863,-500.0,0.00015173,2]
[394106645,1763287845872,-500.0,0.00015173,2]
[394106646,1763287845882,-500.0,0.00015173,2]
[394106647,1763287845891,-500.0,0.00015173,2]
[394106648,1763287845901,-500.0,0.00015173,2]
[394106649,1763287845910,-500.0,0.00015173,2]
[394106650,1763287845919,-500.0,0.00015173,2]
[394106651,1763287845928,-500.0,0.00015173,2]
[394106652,1763287845938,-500.0,0.00015173,2]
[394106653,1763287845948,-500.0,0.00015173,2]
[394106654,1763287845958,-261.49879242,0.00015173,2]
[394106655,1763287845968,-500.0,0.00015173,2]
[394106656,1763287845977,-500.0,0.00015173,2]
[394106657,1763287845987,-500.0,0.00015173,2]
[394106658,1763287845996,-500.0,0.00015173,2]
[394106659,1763287846006,-500.0,0.00015173,2]
[394106660,1763287846016,-500.0,0.00015173,2]
[394106661,1763287846025,-500.0,0.00015173,2]
[394106662,1763287846035,-500.0,0.00015173,2]
[394106663,1763287846044,-500.0,0.00015173,2]
[394106664,1763287846053,-500.0,0.00015173,2]
[394106665,1763287846064,-500.0,0.00015173,2]
[394106666,1763287846073,-500.0,0.00015173,2]
[394106667,1763287846082,-500.0,0.00015173,2]
[394106668,1763287846092,-500.0,0.00015173,2]
[394106669,1763287846101,-500.0,0.00015173,2]
[394106670,1763287846111,-500.0,0.00015173,2]
[394106671,1763287846120,-500.0,0.00015173,2]
[394106672,1763287846130,-500.0,0.00015173,2]
[394106673,1763287846139,-500.0,0.00015173,2]
[394106674,1763287846148,-500.0,0.00015173,2]
[394106675,1763287846158,-500.0,0.00015173,2]
[394106676,1763287846167,-500.0,0.00015173,2]
[394106677,1763287846177,-500.0,0.00015173,2]
[394106678,1763287846187,-500.0,0.00015173,2]
[394106679,1763287846196,-500.0,0.00015173,2]
[394106680,1763287846205,-500.0,0.00015173,2]
[394106681,1763287846215,-500.0,0.00015173,2]
[394106682,1763287846224,-500.0,0.00015173,2]
[394106683,1763287846233,-500.0,0.00015173,2]
[394106684,1763287846243,-500.0,0.00015173,2]
[394106685,1763287846253,-500.0,0.00015173,2]
[394106686,1763287846262,-500.0,0.00015173,2]
[394106687,1763287846271,-500.0,0.00015173,2]
[394106688,1763287846281,-500.0,0.00015173,2]
[394106690,1763287846290,-500.0,0.00015173,2]
[394106691,1763287846299,-500.0,0.00015173,2]
[394106692,1763287846310,-500.0,0.00015173,2]
[394106693,1763287846320,-500.0,0.00015173,2]
[394106694,1763287846330,-500.0,0.00015173,2]
[394106695,1763287846340,-245.12972065,0.00015173,2]
[394106697,1763287846351,-500.0,0.00015173,2]
[394106698,1763287846360,-500.0,0.00015173,2]
[394106699,1763287846369,-500.0,0.00015173,2]
[394106700,1763287846379,-500.0,0.00015173,2]
[394106701,1763287846389,-500.0,0.00015173,2]
[394106702,1763287846398,-19749.90708178,0.00015174,2]
[394106703,1763287846883,-18978.70421134,0.00015174,2]
[394106704,1763287846896,-11271.38870688,0.00015174,2]
[394106705,1763287846905,-4172.18209112,0.00015174,2]
[394106706,1763287846915,-378.42391232,0.00015273,2]
[394106707,1763287846925,-998.60195726,0.00015273,2]
[394106708,1763287846935,-273.24419039,0.00015273,2]
[394106709,1763287846945,-430.88736358,0.00015273,2]
[394106710,1763287846954,-28039.73415174,0.00015275,2]
[394106711,1763287846964,-23735.12899329,0.00015278,2]
[394106712,1763287846975,-1240.64151937,0.00015278,2]
[394106713,1763287846987,-3071.57352302,0.00015278,2]
[394106714,1763287942514,-741.834414,0.0001425,2]